[Event "Early-Titled-Tuesday-Blitz-June-18-2024"]
[Site "Chess.com"]
[Date "2024.06.18"]
[Round "10"]
[White "HajiyevKanan"]
[Black "SaraBlackPanther"]
[Result "0-1"]
[WhiteElo "2539"]
[BlackElo "2718"]
[TimeControl "180+1"]
[EndTime "9:57:53 PDT"]
[Termination "SaraBlackPanther won on time"]

1. d4 {[%clk 0:03:00.9]} 1... Nf6 {[%clk 0:02:59.9]} 2. Nf3 {[%clk 0:03:01.2]}
2... g6 {[%clk 0:03:00.1]} 3. g3 {[%clk 0:03:00.1]} 3... Bg7 {[%clk 0:03:00.4]}
4. Bg2 {[%clk 0:03:01]} 4... O-O {[%clk 0:03:01]} 5. O-O {[%clk 0:03:01.9]} 5...
d6 {[%clk 0:02:59.3]} 6. b3 {[%clk 0:03:02.4]} 6... a5 {[%clk 0:02:57.6]} 7. a3
{[%clk 0:03:02.3]} 7... Nbd7 {[%clk 0:02:46.6]} 8. Bb2 {[%clk 0:03:02.1]} 8...
c6 {[%clk 0:02:45.6]} 9. c4 {[%clk 0:03:01]} 9... Re8 {[%clk 0:02:45]} 10. Nbd2
{[%clk 0:02:57.1]} 10... e5 {[%clk 0:02:44.3]} 11. dxe5 {[%clk 0:02:52]} 11...
dxe5 {[%clk 0:02:44.2]} 12. e3 {[%clk 0:02:41.8]} 12... Qc7 {[%clk 0:02:39.2]}
13. Qc2 {[%clk 0:02:41.2]} 13... Nc5 {[%clk 0:02:36.9]} 14. Ng5 {[%clk
0:02:27.2]} 14... Bf5 {[%clk 0:02:31.9]} 15. Nge4 {[%clk 0:02:18.2]} 15... Rad8
{[%clk 0:02:29.9]} 16. Nxf6+ {[%clk 0:02:17.3]} 16... Bxf6 {[%clk 0:02:29.9]}
17. Ne4 {[%clk 0:02:16.4]} 17... Bg7 {[%clk 0:02:27.2]} 18. g4 {[%clk
0:02:13.6]} 18... Bxe4 {[%clk 0:02:21.2]} 19. Bxe4 {[%clk 0:02:13]} 19... Qd7
{[%clk 0:02:21.7]} 20. Bf3 {[%clk 0:01:58.5]} 20... e4 {[%clk 0:02:17.9]} 21.
Be2 {[%clk 0:01:49.4]} 21... Qd2 {[%clk 0:02:14]} 22. Qxd2 {[%clk 0:01:28.9]}
22... Rxd2 {[%clk 0:02:14.9]} 23. Bxg7 {[%clk 0:01:26]} 23... Kxg7 {[%clk
0:02:08.4]} 24. b4 {[%clk 0:00:58]} 24... Nb3 {[%clk 0:01:54.3]} 25. Rab1 {[%clk
0:00:53.9]} 25... Rxe2 {[%clk 0:01:52.8]} 26. Rxb3 {[%clk 0:00:53.9]} 26... a4
{[%clk 0:01:53.5]} 27. Rc3 {[%clk 0:00:53.5]} 27... Rd8 {[%clk 0:01:52.7]} 28.
g5 {[%clk 0:00:43.8]} 28... Rdd2 {[%clk 0:01:50.4]} 29. c5 {[%clk 0:00:41.4]}
29... h6 {[%clk 0:01:46.3]} 30. h4 {[%clk 0:00:40.1]} 30... hxg5 {[%clk
0:01:46.1]} 31. hxg5 {[%clk 0:00:41]} 31... Rd5 {[%clk 0:01:46.2]} 32. Rc4
{[%clk 0:00:35.2]} 32... Rxg5+ {[%clk 0:01:46.2]} 33. Kh2 {[%clk 0:00:35.4]}
33... f5 {[%clk 0:01:46.6]} 34. Rd4 {[%clk 0:00:34.6]} 34... Kf6 {[%clk
0:01:28.7]} 35. Rd7 {[%clk 0:00:31.6]} 35... f4 {[%clk 0:01:11.5]} 36. exf4
{[%clk 0:00:28.9]} 36... Rg4 {[%clk 0:01:12.1]} 37. Kh3 {[%clk 0:00:26.5]} 37...
Rxf4 {[%clk 0:01:11.9]} 38. Rxb7 {[%clk 0:00:22.8]} 38... e3 {[%clk 0:01:11.8]}
39. Kg3 {[%clk 0:00:18.3]} 39... Rexf2 {[%clk 0:00:58.5]} 40. Re1 {[%clk
0:00:10.4]} 40... Re4 {[%clk 0:00:42.6]} 41. b5 {[%clk 0:00:09.3]} 41... cxb5
{[%clk 0:00:41.8]} 42. c6 {[%clk 0:00:10.2]} 42... Rc2 {[%clk 0:00:41.1]} 43. c7
{[%clk 0:00:10.8]} 43... e2 {[%clk 0:00:39.2]} 44. Kf3 {[%clk 0:00:10.5]} 44...
Re7 {[%clk 0:00:39.1]} 45. Rb6+ {[%clk 0:00:08.8]} 45... Kf7 {[%clk 0:00:35.2]}
46. Rxb5 {[%clk 0:00:08.4]} 46... Rexc7 {[%clk 0:00:30.1]} 47. Rb4 {[%clk
0:00:06.6]} 47... R7c3+ {[%clk 0:00:29.5]} 48. Kf2 {[%clk 0:00:05.8]} 48... Rxa3
{[%clk 0:00:30.2]} 49. Rb7+ {[%clk 0:00:01.1]} 49... Ke6 {[%clk 0:00:29.5]} 50.
Rb6+ {[%clk 0:00:01.8]} 50... Kf5 {[%clk 0:00:29.9]} 51. Rb5+ {[%clk 0:00:02.4]}
51... Ke4 {[%clk 0:00:29.3]} 52. Rg5 {[%clk 0:00:02]} 52... Rf3+ {[%clk
0:00:27.2]} 53. Kg2 {[%clk 0:00:01.5]} 53... Rf6 {[%clk 0:00:27.4]} 0-1

[Event "Early-Titled-Tuesday-Blitz-June-18-2024"]
[Site "Chess.com"]
[Date "2024.06.18"]
[Round "10"]
[White "santosalberto1987"]
[Black "ilqar_74"]
[Result "0-1"]
[WhiteElo "2590"]
[BlackElo "2827"]
[TimeControl "180+1"]
[EndTime "9:57:54 PDT"]
[Termination "ilqar_74 won on time"]

1. e4 {[%clk 0:02:45.1]} 1... c5 {[%clk 0:02:59.6]} 2. Nf3 {[%clk 0:02:45.1]}
2... d6 {[%clk 0:02:59.7]} 3. Bb5+ {[%clk 0:02:45.2]} 3... Nd7 {[%clk
0:02:59.5]} 4. d4 {[%clk 0:02:45.3]} 4... cxd4 {[%clk 0:02:59.4]} 5. Qxd4 {[%clk
0:02:46.2]} 5... a6 {[%clk 0:02:59.3]} 6. Bxd7+ {[%clk 0:02:45.3]} 6... Bxd7
{[%clk 0:03:00.2]} 7. O-O {[%clk 0:02:44.3]} 7... h6 {[%clk 0:03:00.2]} 8. c4
{[%clk 0:02:35.7]} 8... e5 {[%clk 0:02:59.8]} 9. Qd3 {[%clk 0:02:34.7]} 9... Nf6
{[%clk 0:03:00.2]} 10. Nc3 {[%clk 0:02:34.4]} 10... Be7 {[%clk 0:03:00.3]} 11.
b3 {[%clk 0:02:32]} 11... Rc8 {[%clk 0:03:00.3]} 12. a4 {[%clk 0:02:32]} 12...
O-O {[%clk 0:02:59.1]} 13. a5 {[%clk 0:02:31.9]} 13... Be6 {[%clk 0:02:58.6]}
14. Rd1 {[%clk 0:02:29.7]} 14... Qc7 {[%clk 0:02:58.6]} 15. Be3 {[%clk
0:02:26.5]} 15... Qc6 {[%clk 0:02:56.4]} 16. Bb6 {[%clk 0:02:18.3]} 16... Bg4
{[%clk 0:02:48.9]} 17. h3 {[%clk 0:02:12.7]} 17... Bh5 {[%clk 0:02:44.7]} 18.
Nd5 {[%clk 0:01:55.8]} 18... Nxd5 {[%clk 0:02:44.5]} 19. Qxd5 {[%clk 0:01:56.1]}
19... Qxd5 {[%clk 0:02:44.3]} 20. Rxd5 {[%clk 0:01:55.8]} 20... f5 {[%clk
0:02:41.5]} 21. Nd2 {[%clk 0:01:39.7]} 21... Bf7 {[%clk 0:02:38.5]} 22. Rd3
{[%clk 0:01:38.2]} 22... f4 {[%clk 0:02:38.7]} 23. Nb1 {[%clk 0:01:28.3]} 23...
g5 {[%clk 0:02:33.7]} 24. Nc3 {[%clk 0:01:26.1]} 24... h5 {[%clk 0:02:33.9]} 25.
f3 {[%clk 0:01:21.9]} 25... Rc6 {[%clk 0:02:30.4]} 26. Nd5 {[%clk 0:01:20.9]}
26... Bxd5 {[%clk 0:02:30.5]} 27. exd5 {[%clk 0:01:01.9]} 27... Rcc8 {[%clk
0:02:28.4]} 28. Rc1 {[%clk 0:01:02.2]} 28... Rfe8 {[%clk 0:02:27]} 29. b4 {[%clk
0:01:00.9]} 29... Bf8 {[%clk 0:02:20.5]} 30. c5 {[%clk 0:01:00.4]} 30... e4
{[%clk 0:02:19.5]} 31. fxe4 {[%clk 0:00:59.8]} 31... Rxe4 {[%clk 0:02:20.4]} 32.
c6 {[%clk 0:00:41]} 32... Rxb4 {[%clk 0:02:14.6]} 33. cxb7 {[%clk 0:00:26.7]}
33... Rxc1+ {[%clk 0:02:14.2]} 34. Kf2 {[%clk 0:00:26.9]} 34... Rb2+ {[%clk
0:01:23]} 35. Kf3 {[%clk 0:00:26.4]} 35... Rf1+ {[%clk 0:01:21.6]} 36. Ke4
{[%clk 0:00:26.2]} 36... Re1+ {[%clk 0:01:19.2]} 37. Kf5 {[%clk 0:00:20.7]}
37... Re8 {[%clk 0:01:08.9]} 38. Rc3 {[%clk 0:00:20.7]} 38... Rb8 {[%clk
0:01:06.3]} 39. Rc7 {[%clk 0:00:20.5]} 39... Rxb6 {[%clk 0:00:54.5]} 40. axb6
{[%clk 0:00:20.1]} 40... a5 {[%clk 0:00:55.1]} 41. Ke6 {[%clk 0:00:15.8]} 41...
a4 {[%clk 0:00:55.3]} 42. Kd7 {[%clk 0:00:11.6]} 42... a3 {[%clk 0:00:55.2]} 43.
Rc3 {[%clk 0:00:10.4]} 43... Rxb7+ {[%clk 0:00:51.3]} 44. Kc6 {[%clk 0:00:10.5]}
44... Rb8 {[%clk 0:00:49.8]} 45. Rxa3 {[%clk 0:00:09.2]} 45... Rc8+ {[%clk
0:00:43.6]} 46. Kd7 {[%clk 0:00:07.3]} 46... Rb8 {[%clk 0:00:35.4]} 47. Kc7
{[%clk 0:00:07]} 47... Re8 {[%clk 0:00:35.3]} 48. b7 {[%clk 0:00:05.3]} 48...
Re7+ {[%clk 0:00:34.4]} 49. Kc6 {[%clk 0:00:05.5]} 49... Rxb7 {[%clk 0:00:32.2]}
50. Kxb7 {[%clk 0:00:06.4]} 50... Kf7 {[%clk 0:00:31.9]} 51. Kc6 {[%clk
0:00:04.8]} 51... Kf6 {[%clk 0:00:32.3]} 52. Ra1 {[%clk 0:00:02.4]} 52... g4
{[%clk 0:00:32.3]} 53. hxg4 {[%clk 0:00:02.1]} 53... hxg4 {[%clk 0:00:33.2]} 0-1

[Event "Early-Titled-Tuesday-Blitz-June-18-2024"]
[Site "Chess.com"]
[Date "2024.06.18"]
[Round "10"]
[White "evgchess5"]
[Black "Polish_fighter3000"]
[Result "0-1"]
[WhiteElo "2928"]
[BlackElo "3077"]
[TimeControl "180+1"]
[EndTime "9:57:55 PDT"]
[Termination "Polish_fighter3000 won on time"]

1. e4 {[%clk 0:03:00.9]} 1... c5 {[%clk 0:02:58.7]} 2. Nf3 {[%clk 0:02:59.7]}
2... d6 {[%clk 0:02:59.1]} 3. Bb5+ {[%clk 0:02:59.6]} 3... Nd7 {[%clk
0:02:58.7]} 4. d4 {[%clk 0:02:58.9]} 4... cxd4 {[%clk 0:02:58.1]} 5. Qxd4 {[%clk
0:02:59.5]} 5... a6 {[%clk 0:02:57]} 6. Be2 {[%clk 0:02:59.7]} 6... Ngf6 {[%clk
0:02:56.2]} 7. O-O {[%clk 0:02:59.7]} 7... e5 {[%clk 0:02:40.4]} 8. Qe3 {[%clk
0:02:59]} 8... d5 {[%clk 0:02:25.7]} 9. exd5 {[%clk 0:02:54.7]} 9... Nxd5 {[%clk
0:02:26.6]} 10. Qe4 {[%clk 0:02:28.1]} 10... N5f6 {[%clk 0:02:26.4]} 11. Qh4
{[%clk 0:02:22.6]} 11... Be7 {[%clk 0:02:23.5]} 12. Rd1 {[%clk 0:02:18.7]} 12...
Qc7 {[%clk 0:02:17.7]} 13. Nc3 {[%clk 0:02:03.1]} 13... b5 {[%clk 0:02:17.5]}
14. Bg5 {[%clk 0:02:00.5]} 14... Bb7 {[%clk 0:02:15.6]} 15. Rd2 {[%clk
0:01:40.6]} 15... b4 {[%clk 0:01:46.8]} 16. Nd1 {[%clk 0:01:26.2]} 16... h6
{[%clk 0:01:00.2]} 17. Ne3 {[%clk 0:01:25.1]} 17... O-O-O {[%clk 0:00:59.9]} 18.
Bxf6 {[%clk 0:01:06.6]} 18... Nxf6 {[%clk 0:01:00.8]} 19. Nf5 {[%clk 0:00:51.4]}
19... Bc5 {[%clk 0:00:59.7]} 20. Rxd8+ {[%clk 0:00:32.6]} 20... Rxd8 {[%clk
0:01:00.6]} 21. Nxg7 {[%clk 0:00:28.1]} 21... Nd5 {[%clk 0:00:37.4]} 22. g3
{[%clk 0:00:21.9]} 22... Rg8 {[%clk 0:00:28.5]} 23. Qxh6 {[%clk 0:00:20.9]}
23... e4 {[%clk 0:00:25.7]} 24. Nh4 {[%clk 0:00:18.2]} 24... e3 {[%clk
0:00:17.7]} 25. f3 {[%clk 0:00:16.4]} 25... Bf8 {[%clk 0:00:15]} 26. Nhf5 {[%clk
0:00:16.4]} 26... Qxc2 {[%clk 0:00:14.9]} 27. Re1 {[%clk 0:00:15.5]} 27... Qxb2
{[%clk 0:00:07.5]} 28. Qh3 {[%clk 0:00:13.8]} 28... Kb8 {[%clk 0:00:06.9]} 29.
Nh5 {[%clk 0:00:13.8]} 29... Nc3 {[%clk 0:00:06.8]} 30. Kf1 {[%clk 0:00:13]}
30... Bxf3 {[%clk 0:00:05.8]} 31. Nd4 {[%clk 0:00:08]} 31... Nxe2 {[%clk
0:00:05.9]} 32. Nxe2 {[%clk 0:00:06.9]} 32... Rh8 {[%clk 0:00:04.6]} 33. Qd7
{[%clk 0:00:04.8]} 33... Bxh5 {[%clk 0:00:03.3]} 34. Qd8+ {[%clk 0:00:04]} 34...
Kb7 {[%clk 0:00:03.7]} 35. Qd7+ {[%clk 0:00:04]} 35... Kb6 {[%clk 0:00:04.2]}
36. Qd8+ {[%clk 0:00:03.9]} 36... Kb5 {[%clk 0:00:03.5]} 37. Qd7+ {[%clk
0:00:02.4]} 37... Ka5 {[%clk 0:00:02.8]} 38. Qd8+ {[%clk 0:00:02]} 38... Ka4
{[%clk 0:00:02.9]} 39. Qd7+ {[%clk 0:00:02.1]} 39... Ka5 {[%clk 0:00:01.6]} 40.
Qd8+ {[%clk 0:00:02.2]} 40... Kb5 {[%clk 0:00:02.2]} 41. Qd7+ {[%clk 0:00:02.4]}
41... Kb6 {[%clk 0:00:01.4]} 42. Qd8+ {[%clk 0:00:02.4]} 42... Kc6 {[%clk
0:00:01.7]} 43. Qc8+ {[%clk 0:00:01]} 43... Kd5 {[%clk 0:00:01.8]} 44. Qd7+
{[%clk 0:00:01.3]} 44... Ke5 {[%clk 0:00:01.8]} 45. Qc7+ {[%clk 0:00:01]} 45...
Kf6 {[%clk 0:00:02.3]} 0-1

[Event "Early-Titled-Tuesday-Blitz-June-18-2024"]
[Site "Chess.com"]
[Date "2024.06.18"]
[Round "10"]
[White "elamier"]
[Black "NigiriSushies"]
[Result "1-0"]
[WhiteElo "2449"]
[BlackElo "2301"]
[TimeControl "180+1"]
[EndTime "9:57:57 PDT"]
[Termination "elamier won on time"]

1. d4 {[%clk 0:03:00.9]} 1... d5 {[%clk 0:02:58.2]} 2. c4 {[%clk 0:03:00.4]}
2... c6 {[%clk 0:02:58.2]} 3. Nc3 {[%clk 0:02:59.5]} 3... Nf6 {[%clk 0:02:58.3]}
4. e3 {[%clk 0:02:58.9]} 4... e6 {[%clk 0:02:58.2]} 5. Nf3 {[%clk 0:02:58.7]}
5... Nbd7 {[%clk 0:02:58.7]} 6. Qc2 {[%clk 0:02:58.5]} 6... Bd6 {[%clk
0:02:58.4]} 7. Bd3 {[%clk 0:02:57.7]} 7... dxc4 {[%clk 0:02:57.6]} 8. Bxc4
{[%clk 0:02:57.4]} 8... b5 {[%clk 0:02:58.3]} 9. Bd3 {[%clk 0:02:57.9]} 9... a6
{[%clk 0:02:58.2]} 10. O-O {[%clk 0:02:56.5]} 10... Bb7 {[%clk 0:02:58.2]} 11.
a4 {[%clk 0:02:42.7]} 11... O-O {[%clk 0:02:46.5]} 12. e4 {[%clk 0:02:16.3]}
12... e5 {[%clk 0:02:38.9]} 13. dxe5 {[%clk 0:02:08.4]} 13... Nxe5 {[%clk
0:02:37.8]} 14. Nxe5 {[%clk 0:02:07.7]} 14... Bxe5 {[%clk 0:02:37.3]} 15. h3
{[%clk 0:02:08.4]} 15... h6 {[%clk 0:02:31.1]} 16. Be3 {[%clk 0:02:07.9]} 16...
Qe7 {[%clk 0:02:26.3]} 17. f4 {[%clk 0:01:59]} 17... Bxc3 {[%clk 0:02:21.5]} 18.
bxc3 {[%clk 0:01:58.5]} 18... Rfe8 {[%clk 0:02:21.2]} 19. e5 {[%clk 0:01:58.4]}
19... Nd5 {[%clk 0:02:21.4]} 20. Bd2 {[%clk 0:01:49.6]} 20... Red8 {[%clk
0:01:59.6]} 21. Rae1 {[%clk 0:01:33]} 21... c5 {[%clk 0:01:43.9]} 22. axb5
{[%clk 0:01:21]} 22... c4 {[%clk 0:01:44.1]} 23. Bh7+ {[%clk 0:01:18.2]} 23...
Kh8 {[%clk 0:01:44.7]} 24. bxa6 {[%clk 0:01:16.9]} 24... Rxa6 {[%clk 0:01:43.6]}
25. Be4 {[%clk 0:01:12.6]} 25... Rda8 {[%clk 0:01:43]} 26. Qd1 {[%clk
0:00:54.9]} 26... Ra2 {[%clk 0:01:35.7]} 27. f5 {[%clk 0:00:27.3]} 27... Qxe5
{[%clk 0:01:26]} 28. Bb1 {[%clk 0:00:27.5]} 28... Rxd2 {[%clk 0:00:18.6]} 29.
Qxd2 {[%clk 0:00:28.4]} 29... Qxc3 {[%clk 0:00:18.8]} 30. Qf2 {[%clk 0:00:29.3]}
30... Qf6 {[%clk 0:00:12.7]} 31. Be4 {[%clk 0:00:29.2]} 31... c3 {[%clk
0:00:12.1]} 32. Qf3 {[%clk 0:00:27.8]} 32... Rd8 {[%clk 0:00:10.2]} 33. Kh1
{[%clk 0:00:24.6]} 33... Rc8 {[%clk 0:00:01.1]} 34. Bxd5 {[%clk 0:00:23.9]}
34... Bxd5 {[%clk 0:00:01.8]} 35. Qxd5 {[%clk 0:00:24.6]} 35... c2 {[%clk
0:00:02.7]} 36. Rc1 {[%clk 0:00:23.7]} 36... Kh7 {[%clk 0:00:02.8]} 37. Qd3
{[%clk 0:00:23.2]} 37... Qb2 {[%clk 0:00:02.8]} 38. f6+ {[%clk 0:00:23.2]} 38...
g6 {[%clk 0:00:02.7]} 39. Qd7 {[%clk 0:00:22.3]} 39... Rf8 {[%clk 0:00:02.6]}
40. Qe7 {[%clk 0:00:20.2]} 40... Rg8 {[%clk 0:00:01.3]} 41. Qxf7+ {[%clk
0:00:20.2]} 41... Kh8 {[%clk 0:00:02.2]} 42. Qe6 {[%clk 0:00:18.3]} 42... g5
{[%clk 0:00:02.3]} 43. f7 {[%clk 0:00:18.3]} 43... Rf8 {[%clk 0:00:02.8]} 44.
Qe8 {[%clk 0:00:18.6]} 44... Kg7 {[%clk 0:00:02.6]} 45. Qe4 {[%clk 0:00:17.3]}
45... h5 {[%clk 0:00:02.4]} 46. Rxc2 {[%clk 0:00:15.7]} 46... Qb6 {[%clk
0:00:03.3]} 47. Qe5+ {[%clk 0:00:14.2]} 47... Kh6 {[%clk 0:00:03]} 48. Rcf2
{[%clk 0:00:14.6]} 48... Rxf7 {[%clk 0:00:01.3]} 49. Rxf7 {[%clk 0:00:13.9]}
49... g4 {[%clk 0:00:01.8]} 50. R1f6+ {[%clk 0:00:14.2]} 1-0

[Event "Early-Titled-Tuesday-Blitz-June-18-2024"]
[Site "Chess.com"]
[Date "2024.06.18"]
[Round "10"]
[White "ploxoi"]
[Black "xasid81"]
[Result "1-0"]
[WhiteElo "2511"]
[BlackElo "2607"]
[TimeControl "180+1"]
[EndTime "9:57:59 PDT"]
[Termination "ploxoi won by resignation"]

1. c4 {[%clk 0:03:00.9]} 1... a6 {[%clk 0:03:00.8]} 2. Nc3 {[%clk 0:02:56.3]}
2... e6 {[%clk 0:03:01.7]} 3. Nf3 {[%clk 0:02:54.3]} 3... d5 {[%clk 0:03:02.1]}
4. d4 {[%clk 0:02:54]} 4... Nf6 {[%clk 0:03:02.4]} 5. Bg5 {[%clk 0:02:50.3]}
5... dxc4 {[%clk 0:03:01.8]} 6. e4 {[%clk 0:02:49.5]} 6... b5 {[%clk 0:02:59.8]}
7. e5 {[%clk 0:02:46]} 7... h6 {[%clk 0:03:00.1]} 8. Bh4 {[%clk 0:02:45.7]} 8...
g5 {[%clk 0:03:00.2]} 9. Nxg5 {[%clk 0:02:41.8]} 9... hxg5 {[%clk 0:02:59.6]}
10. Bxg5 {[%clk 0:02:42.2]} 10... Be7 {[%clk 0:02:59.7]} 11. exf6 {[%clk
0:02:35.4]} 11... Bxf6 {[%clk 0:03:00.6]} 12. Qf3 {[%clk 0:02:33.9]} 12... Bxg5
{[%clk 0:02:58.5]} 13. Qxa8 {[%clk 0:02:34]} 13... Nd7 {[%clk 0:02:56.8]} 14.
Be2 {[%clk 0:02:29.2]} 14... Nb6 {[%clk 0:02:56.1]} 15. Qc6+ {[%clk 0:02:28]}
15... Bd7 {[%clk 0:02:49.5]} 16. Qf3 {[%clk 0:02:27.9]} 16... Qf6 {[%clk
0:02:43.6]} 17. Ne4 {[%clk 0:02:22.9]} 17... Qxf3 {[%clk 0:02:42.2]} 18. Bxf3
{[%clk 0:02:23.8]} 18... Be7 {[%clk 0:02:42.5]} 19. O-O-O {[%clk 0:02:14.6]}
19... Nd5 {[%clk 0:02:35.6]} 20. a3 {[%clk 0:02:08.4]} 20... Nf4 {[%clk
0:02:32.4]} 21. Kc2 {[%clk 0:02:07.5]} 21... Nd3 {[%clk 0:02:23]} 22. Be2 {[%clk
0:01:59.1]} 22... Nf4 {[%clk 0:02:20.5]} 23. Bf3 {[%clk 0:01:59]} 23... Nd3
{[%clk 0:02:20.6]} 24. Rdf1 {[%clk 0:01:50.8]} 24... f5 {[%clk 0:02:16.3]} 25.
Nc3 {[%clk 0:01:44]} 25... Bf6 {[%clk 0:02:15.3]} 26. Ne2 {[%clk 0:01:44.6]}
26... c5 {[%clk 0:02:12.8]} 27. dxc5 {[%clk 0:01:43.2]} 27... Nxc5 {[%clk
0:02:10.1]} 28. Nc1 {[%clk 0:01:39.5]} 28... e5 {[%clk 0:02:07.2]} 29. Bd5
{[%clk 0:01:38.6]} 29... e4 {[%clk 0:02:04.7]} 30. f3 {[%clk 0:01:38]} 30... Ke7
{[%clk 0:01:59.7]} 31. fxe4 {[%clk 0:01:37.4]} 31... fxe4 {[%clk 0:02:00.6]} 32.
Rf4 {[%clk 0:01:14.5]} 32... Be5 {[%clk 0:01:59.4]} 33. Rff1 {[%clk 0:01:05.8]}
33... Kd6 {[%clk 0:01:54.1]} 34. Rd1 {[%clk 0:01:02.8]} 34... Ke7 {[%clk
0:01:52.9]} 35. b4 {[%clk 0:00:28.6]} 35... Nd3 {[%clk 0:01:46.2]} 36. Rdf1
{[%clk 0:00:23.1]} 36... Nf4 {[%clk 0:00:52.1]} 37. Bxe4 {[%clk 0:00:21.7]}
37... Ne6 {[%clk 0:00:50.1]} 38. Ne2 {[%clk 0:00:20.6]} 38... a5 {[%clk
0:00:41.8]} 39. h4 {[%clk 0:00:14.5]} 39... axb4 {[%clk 0:00:37.6]} 40. axb4
{[%clk 0:00:15.4]} 40... Ng7 {[%clk 0:00:34.4]} 41. Nf4 {[%clk 0:00:12.6]} 41...
Bxf4 {[%clk 0:00:31.2]} 42. Rxf4 {[%clk 0:00:13.5]} 42... Ne6 {[%clk 0:00:31.8]}
43. Rf2 {[%clk 0:00:10.7]} 43... Rh6 {[%clk 0:00:25.7]} 44. g4 {[%clk
0:00:09.1]} 44... Rh8 {[%clk 0:00:19.5]} 45. h5 {[%clk 0:00:07.2]} 45... Bc8
{[%clk 0:00:15.6]} 46. Kc3 {[%clk 0:00:05.6]} 46... Nc7 {[%clk 0:00:13.9]} 47.
Re1 {[%clk 0:00:04.9]} 47... Kd6 {[%clk 0:00:11.1]} 48. Rf6+ {[%clk 0:00:05.2]}
48... Ke5 {[%clk 0:00:11.1]} 49. g5 {[%clk 0:00:04.9]} 49... Rxh5 {[%clk
0:00:08.8]} 50. Bg6+ {[%clk 0:00:05.2]} 50... Kd5 {[%clk 0:00:07.6]} 51. Bxh5
{[%clk 0:00:06.1]} 1-0

[Event "Early-Titled-Tuesday-Blitz-June-18-2024"]
[Site "Chess.com"]
[Date "2024.06.18"]
[Round "10"]
[White "Ordekalog"]
[Black "pinelone"]
[Result "1-0"]
[WhiteElo "2625"]
[BlackElo "2475"]
[TimeControl "180+1"]
[EndTime "9:58:00 PDT"]
[Termination "Ordekalog won by resignation"]

1. e4 {[%clk 0:03:00.9]} 1... c6 {[%clk 0:02:59.6]} 2. d4 {[%clk 0:03:00.1]}
2... d5 {[%clk 0:02:59.8]} 3. Nc3 {[%clk 0:03:00]} 3... dxe4 {[%clk 0:03:00.1]}
4. Nxe4 {[%clk 0:03:00.9]} 4... Nf6 {[%clk 0:03:00.5]} 5. Bd3 {[%clk 0:03:00.1]}
5... Qxd4 {[%clk 0:02:53.5]} 6. Nf3 {[%clk 0:02:59.5]} 6... Qd8 {[%clk
0:02:50.2]} 7. Qe2 {[%clk 0:02:58.7]} 7... Nxe4 {[%clk 0:02:49.3]} 8. Qxe4
{[%clk 0:02:58.4]} 8... Nd7 {[%clk 0:02:48.6]} 9. Be3 {[%clk 0:02:51.9]} 9...
Nf6 {[%clk 0:02:46.4]} 10. Qh4 {[%clk 0:02:51.2]} 10... Qa5+ {[%clk 0:02:37.3]}
11. Bd2 {[%clk 0:02:48.8]} 11... Qh5 {[%clk 0:02:34.7]} 12. Qg3 {[%clk
0:02:44.1]} 12... Qg4 {[%clk 0:02:31.4]} 13. Qc7 {[%clk 0:02:42.8]} 13... Qxg2
{[%clk 0:01:32.4]} 14. Ba5 {[%clk 0:02:24]} 14... Bd7 {[%clk 0:01:03.6]} 15.
Qxb7 {[%clk 0:01:45.4]} 15... Rc8 {[%clk 0:00:57.8]} 16. O-O-O {[%clk
0:00:29.1]} 16... Qxf3 {[%clk 0:00:57.3]} 17. Ba6 {[%clk 0:00:23.9]} 17... Qf4+
{[%clk 0:00:46]} 18. Rd2 {[%clk 0:00:22.2]} 18... Qb8 {[%clk 0:00:33.1]} 19.
Rxd7 {[%clk 0:00:20]} 19... Nxd7 {[%clk 0:00:20.9]} 20. Qxc8+ {[%clk 0:00:19.7]}
20... Qxc8 {[%clk 0:00:20.3]} 21. Bxc8 {[%clk 0:00:20.6]} 21... e6 {[%clk
0:00:15.9]} 22. Rd1 {[%clk 0:00:18.5]} 22... Nb6 {[%clk 0:00:14.2]} 23. Bb7
{[%clk 0:00:14.6]} 23... Bc5 {[%clk 0:00:11.9]} 24. Bxc6+ {[%clk 0:00:10.3]}
24... Ke7 {[%clk 0:00:12.3]} 25. f3 {[%clk 0:00:09.2]} 25... Rc8 {[%clk
0:00:11.2]} 26. Bb7 {[%clk 0:00:07.7]} 26... Rc7 {[%clk 0:00:11.2]} 27. Ba6
{[%clk 0:00:07.4]} 27... Be3+ {[%clk 0:00:11]} 28. Kb1 {[%clk 0:00:07]} 28...
Nd5 {[%clk 0:00:11.3]} 29. Bxc7 {[%clk 0:00:04.8]} 29... Nxc7 {[%clk 0:00:11.2]}
30. Bc4 {[%clk 0:00:04.6]} 30... f5 {[%clk 0:00:10.6]} 31. Rd3 {[%clk
0:00:05.3]} 31... f4 {[%clk 0:00:11]} 32. a4 {[%clk 0:00:05.9]} 32... e5 {[%clk
0:00:11.3]} 33. b4 {[%clk 0:00:06]} 33... g5 {[%clk 0:00:10.6]} 34. h3 {[%clk
0:00:05.4]} 34... h5 {[%clk 0:00:10.9]} 35. b5 {[%clk 0:00:05.7]} 35... g4
{[%clk 0:00:09.5]} 36. fxg4 {[%clk 0:00:05.1]} 36... hxg4 {[%clk 0:00:09.4]} 37.
hxg4 {[%clk 0:00:05.4]} 37... Bd4 {[%clk 0:00:09.9]} 38. c3 {[%clk 0:00:04.9]}
38... Bc5 {[%clk 0:00:09.1]} 39. Bd5 {[%clk 0:00:04.8]} 39... Nxd5 {[%clk
0:00:07.2]} 40. Rxd5 {[%clk 0:00:05.7]} 40... Be3 {[%clk 0:00:06.2]} 41. Rxe5+
{[%clk 0:00:05.1]} 41... Kf6 {[%clk 0:00:06.8]} 42. Rxe3 {[%clk 0:00:04.8]}
42... fxe3 {[%clk 0:00:06.8]} 43. Kc2 {[%clk 0:00:05.4]} 43... Ke5 {[%clk
0:00:07.1]} 44. Kd3 {[%clk 0:00:05.7]} 44... Kf4 {[%clk 0:00:07.6]} 45. Ke2
{[%clk 0:00:06.2]} 45... Ke4 {[%clk 0:00:06.1]} 46. a5 {[%clk 0:00:06.4]} 46...
Kd5 {[%clk 0:00:06.2]} 47. g5 {[%clk 0:00:06.7]} 47... Kc5 {[%clk 0:00:06.6]}
48. g6 {[%clk 0:00:07.1]} 48... Kxb5 {[%clk 0:00:07.2]} 49. g7 {[%clk
0:00:07.8]} 49... Kxa5 {[%clk 0:00:07.5]} 50. g8=Q {[%clk 0:00:08.4]} 50... Kb5
{[%clk 0:00:08.3]} 51. Qd5+ {[%clk 0:00:08.3]} 1-0